fUST/lending_fUST_20250602
["ID","MTS","AMOUNT","RATE_DAILY","PERIOD"]
[363668029,1748806236385,-622.88,0.00018082,2]
[363668030,1748806236395,-4001.89342993,0.00018107,2]
[363668031,1748806236405,-258.97890036,0.00018112,2]
[363668032,1748806236415,-430.0,0.00018112,2]
[363668033,1748806236425,-430.0,0.00018112,2]
[363668034,1748806236435,-430.0,0.00018112,2]
[363668035,1748806236444,-430.0,0.00018112,2]
[363668036,1748806236454,-430.0,0.00018112,2]
[363668037,1748806236463,-430.0,0.00018112,2]
[363668038,1748806236473,-430.0,0.00018112,2]
[363668039,1748806236482,-376.09967657,0.00018112,2]
[363668040,1748806236492,-430.0,0.00018112,2]
[363668041,1748806236502,-430.0,0.00018112,2]
[363668042,1748806236513,-430.0,0.00018112,2]
[363668043,1748806236522,-430.0,0.00018112,2]
[363668044,1748806236532,-430.0,0.00018112,2]
[363668045,1748806236541,-430.0,0.00018112,2]
[363668046,1748806236551,-430.0,0.00018112,2]
[363668047,1748806236561,-430.0,0.00018112,2]
[363668048,1748806236571,-430.0,0.00018112,2]
[363668049,1748806236581,-430.0,0.00018112,2]
[363668050,1748806236591,-430.0,0.00018112,2]
[363668051,1748806236600,-430.0,0.00018112,2]
[363668052,1748806236610,-430.0,0.00018112,2]
[363668053,1748806236620,-430.0,0.00018112,2]
[363668054,1748806236630,-430.0,0.00018112,2]
[363668055,1748806236639,-3907.07482297,0.00018156,2]
[363668056,1748806236649,-222.553396,0.00018284,2]
[363668057,1748806236658,-430.0,0.00018356,2]
[363668058,1748806236668,-430.0,0.00018356,2]
[363668059,1748806236677,-430.0,0.00018356,2]
[363668060,1748806236687,-430.0,0.00018356,2]
[363668061,1748806236696,-193.0,0.00018356,2]
[363668062,1748806236706,-430.0,0.00018356,2]
[363668063,1748806236715,-705.32,0.00018356,2]
[363668064,1748806236725,-1047.38,0.00018356,2]
[363668065,1748806236735,-1069.0,0.00018356,2]
[363668066,1748806236747,-500.42,0.00018356,2]
[363668067,1748806236757,-430.0,0.00018356,2]
[363668068,1748806236767,-966.98,0.00018356,2]
[363668069,1748806236776,-1377.76,0.00018356,2]
[363668070,1748806236785,-622.88,0.00018356,2]
[363668071,1748806236794,-290.69362332,0.00018386,2]
[363668072,1748806236804,-430.0,0.00018386,2]
[363668073,1748806236813,-430.0,0.00018386,2]
[363668074,1748806236823,-430.0,0.00018386,2]
[363668075,1748806236833,-430.0,0.00018386,2]
[363668076,1748806236843,-430.0,0.00018386,2]
[363668077,1748806236853,-430.0,0.00018386,2]
[363668078,1748806236862,-400.0,0.00018386,2]
[363668079,1748806236872,-151.0,0.000184,2]
[363668080,1748806236882,-430.0,0.0001863,2]
[363668081,1748806236893,-430.0,0.0001863,2]
[363668082,1748806236903,-430.0,0.0001863,2]
[363668083,1748806236915,-430.0,0.0001863,2]
[363668084,1748806236925,-430.0,0.0001863,2]
[363668085,1748806236935,-705.32,0.0001863,2]
[363668086,1748806236944,-1047.38,0.0001863,2]
[363668087,1748806236954,-1069.0,0.0001863,2]
[363668088,1748806236963,-500.42,0.0001863,2]
[363668089,1748806236974,-430.0,0.0001863,2]
[363668090,1748806236984,-966.98,0.0001863,2]
[363668091,1748806236994,-1377.76,0.0001863,2]
[363668092,1748806237005,-622.88,0.0001863,2]
[363668093,1748806237015,-164.2688301,0.000187,2]
[363668094,1748806237025,-160.28578917,0.000187,2]
[363668095,1748806237035,-151.0,0.000189,2]
[363668096,1748806237044,-430.0,0.00018904,2]
[363668097,1748806237054,-430.0,0.00018904,2]
[363668098,1748806237063,-430.0,0.00018904,2]
[363668099,1748806237073,-430.0,0.00018904,2]
[363668100,1748806237083,-430.0,0.00018904,2]
[363668101,1748806237092,-705.32,0.00018904,2]
[363668102,1748806237102,-1047.38,0.00018904,2]
[363668103,1748806237113,-1069.0,0.00018904,2]
[363668104,1748806237122,-500.42,0.00018904,2]
[363668105,1748806237132,-430.0,0.00018904,2]
[363668106,1748806237142,-966.98,0.00018904,2]
[363668107,1748806237152,-1377.76,0.00018904,2]
[363668108,1748806237162,-622.88,0.00018904,2]
[363668109,1748806237172,-2351.0,0.00019008,2]
[363668110,1748806237181,-518.0,0.00019124,2]
[363668111,1748806237192,-587.0,0.00019124,2]
[363668112,1748806237202,-300.0,0.00019124,2]
[363668113,1748806237212,-587.0,0.00019124,2]
[363668114,1748806237222,-3907.07482297,0.00019153,2]
[363668115,1748806237232,-430.0,0.00019178,2]
[363668116,1748806237241,-430.0,0.00019178,2]
[363668117,1748806237251,-430.0,0.00019178,2]
[363668118,1748806237261,-430.0,0.00019178,2]
[363668119,1748806237270,-430.0,0.00019178,2]
[363668120,1748806237280,-430.0,0.00019178,2]
[363668121,1748806237290,-430.0,0.00019178,2]
[363668122,1748806237300,-430.0,0.00019178,2]
[363668123,1748806237309,-705.32,0.00019178,2]
[363668124,1748806237319,-1047.38,0.00019178,2]
[363668125,1748806237328,-1069.0,0.00019178,2]
[363668126,1748806237338,-500.42,0.00019178,2]
[363668127,1748806237349,-430.0,0.00019178,2]
[363668128,1748806237359,-966.98,0.00019178,2]
[363668129,1748806237370,-1377.76,0.00019178,2]
[363668130,1748806237380,-622.88,0.00019178,2]
[363668131,1748806237389,-151.0,0.00019178,2]
[363668132,1748806237399,-173.899304,0.00019178,2]
[363668133,1748806237408,-156.587,0.00019233,2]
[363668134,1748806237418,-162.380719,0.00019288,2]
[363668135,1748806237427,-100000.0,0.00019329,2]
[363668136,1748806237437,-168.3888056,0.00019343,2]
[363668137,1748806237446,-174.61919141,0.00019398,2]
[363668138,1748806237456,-151.0,0.000194,2]
[363668139,1748806237466,-430.0,0.00019452,2]
[363668140,1748806237476,-430.0,0.00019452,2]
[363668141,1748806237485,-430.0,0.00019452,2]
[363668142,1748806237494,-430.0,0.00019452,2]
[363668143,1748806237504,-430.0,0.00019452,2]
[363668144,1748806237514,-705.32,0.00019452,2]
[363668145,1748806237524,-1047.38,0.00019452,2]
[363668146,1748806237535,-1069.0,0.00019452,2]
[363668147,1748806237544,-500.42,0.00019452,2]
[363668148,1748806237554,-307.58,0.00019452,2]
[363668149,1748806237564,-966.98,0.00019452,2]
[363668150,1748806237574,-1377.76,0.00019452,2]
[363668151,1748806237585,-622.88,0.00019452,2]
[363668152,1748806237594,-181.08010149,0.00019453,2]
[363668153,1748806237603,-1001.63747564,0.000195,2]
[363668154,1748806237613,-30748.8492869,0.000195,2]
[363668164,1748806238846,-437.45157718,0.00015998,2]
[363668165,1748806238857,-238.06182985,0.00015998,2]
[363668166,1748806238866,-500.0,0.00015998,2]
[363668167,1748806238875,-500.0,0.00015998,2]
[363668168,1748806238884,-214.42804429,0.00015998,2]
[363668169,1748806238895,-500.0,0.00015998,2]
[363668170,1748806238905,-500.0,0.00015998,2]
[363668171,1748806238914,-500.0,0.00015998,2]
[363668172,1748806238923,-500.0,0.00015998,2]
[363668173,1748806238933,-500.0,0.00015998,2]
[363668174,1748806238943,-500.0,0.00015998,2]
[363668175,1748806238952,-500.0,0.00015998,2]
[363668176,1748806238962,-500.0,0.00015998,2]
[363668177,1748806238971,-500.0,0.00015998,2]
[363668178,1748806238981,-500.0,0.00015998,2]
[363668179,1748806238989,-500.0,0.00015998,2]
[363668180,1748806238999,-517.53441471,0.00015998,2]
[363668181,1748806239009,-500.0,0.00015998,2]
[363668182,1748806239018,-500.0,0.00015998,2]
[363668183,1748806239028,-242.99786905,0.00016438,2]
[363668184,1748806239038,-430.0,0.00016438,2]
[363668185,1748806239047,-669.75,0.00016438,2]
[363668186,1748806239057,-377.36,0.00016702,3]
[363668187,1748806239067,-430.0,0.00016712,2]
[363668188,1748806239076,-367.45238264,0.00016712,2]
[363668189,1748806239086,-669.75,0.00016712,2]
[363668190,1748806239095,-430.0,0.00016986,2]
[363668191,1748806239104,-669.75,0.00016986,2]
[363668192,1748806239114,-430.0,0.0001726,2]
[363668193,1748806239123,-669.75,0.0001726,2]
[363668194,1748806239132,-430.0,0.00017534,2]
[363668195,1748806239142,-430.0,0.00017808,2]
[363668196,1748806239151,-754.72,0.00018072,3]
[363668197,1748806239161,-430.0,0.00018082,2]
[363668198,1748806239170,-289.56434135,0.00018149,2]
[363668199,1748806239179,-4001.89342993,0.00018348,2]
[363668200,1748806239189,-430.0,0.00018356,2]
[363668201,1748806239198,-4001.89342993,0.0001859,2]
[363668202,1748806239207,-430.0,0.0001863,2]
[363668203,1748806239217,-4001.89342993,0.00018831,2]
[363668204,1748806239226,-430.0,0.00018904,2]
[363668205,1748806239235,-4001.89342993,0.00019072,2]
[363668206,1748806239245,-500.0,0.00019178,2]
[363668207,1748806239254,-500.0,0.00019178,2]
[363668208,1748806239266,-500.0,0.00019178,2]
[363668209,1748806239277,-500.0,0.00019178,2]
[363668210,1748806239287,-562.73371435,0.00019178,2]
[363668211,1748806239297,-430.0,0.00019178,2]
[363668212,1748806239308,-4001.89342993,0.00019314,2]
[363668213,1748806239318,-430.0,0.00019452,2]
[363668214,1748806239328,-4465.39443153,0.000195,2]
[363668215,1748806239338,-187.78006525,0.00019508,2]
[363668216,1748806239349,-5000.0,0.0001952,2]
[363668217,1748806239359,-4001.89342993,0.00019555,2]
[363668218,1748806239369,-194.72792766,0.00019563,2]
[363668219,1748806239378,-428.998,0.00019568,2]
[363668220,1748806239388,-178.59002559,0.00019568,2]
[363668221,1748806239397,-201.93286099,0.00019618,2]
[363668222,1748806239408,-209.40437684,0.00019673,2]
[363668223,1748806239417,-2059.58,0.00019686,2]
[363668224,1748806239426,-405.82577583,0.00019726,2]
[363668225,1748806239436,-430.0,0.00019726,2]
[363668226,1748806239445,-430.0,0.00019726,2]
[363668227,1748806239454,-705.32,0.00019726,2]
[363668228,1748806239463,-1047.38,0.00019726,2]
[363668229,1748806239473,-1069.0,0.00019726,2]
[363668230,1748806239482,-500.42,0.00019726,2]
[363668231,1748806239492,-966.98,0.00019726,2]
[363668232,1748806239502,-1377.76,0.00019726,2]
[363668233,1748806239513,-622.88,0.00019726,2]
[363668234,1748806239523,-430.0,0.00019726,2]
[363668235,1748806239532,-217.15233878,0.00019728,2]
[363668236,1748806239541,-225.18697532,0.00019783,2]
[363668237,1748806239552,-4001.89342993,0.00019797,2]
[363668238,1748806239561,-151.0,0.000198,2]
[363668239,1748806239571,-233.51889341,0.00019838,2]
[363668240,1748806239580,-242.15909246,0.00019893,2]
[363668241,1748806239590,-251.11897888,0.00019948,2]
[363668242,1748806239600,-500.0,0.00019999,2]
[363668243,1748806239610,-500.0,0.00019999,2]
[363668244,1748806239619,-500.0,0.00019999,2]
[363668245,1748806239628,-500.0,0.00019999,2]
[363668246,1748806239639,-500.0,0.00019999,2]
[363668247,1748806239648,-419.74785953,0.00019999,2]
[363668248,1748806239658,-500.0,0.00019999,2]
[363668249,1748806239667,-500.0,0.00019999,2]
[363668250,1748806239677,-500.0,0.00019999,2]
[363668251,1748806239686,-500.0,0.00019999,2]
[363668252,1748806239695,-500.0,0.00019999,2]
[363668253,1748806239704,-500.0,0.00019999,2]
[363668254,1748806239713,-500.0,0.00019999,2]
[363668255,1748806239722,-500.0,0.00019999,2]
[363668256,1748806239732,-500.0,0.00019999,2]
[363668257,1748806239741,-500.0,0.00019999,2]
[363668258,1748806239750,-500.0,0.00019999,2]
[363668259,1748806239760,-500.0,0.00019999,2]
[363668260,1748806239769,-500.0,0.00019999,2]
[363668261,1748806239779,-500.0,0.00019999,2]
[363668262,1748806239788,-500.0,0.00019999,2]
[363668263,1748806239797,-500.0,0.00019999,2]
[363668264,1748806239807,-500.0,0.00019999,2]
[363668265,1748806239816,-500.0,0.00019999,2]
[363668266,1748806239825,-382.60517535,0.00019999,2]
[363668267,1748806239835,-500.0,0.00019999,2]
[363668268,1748806239844,-500.0,0.00019999,2]
[363668269,1748806239853,-500.0,0.00019999,2]
[363668270,1748806239863,-15861.42756484,0.0002,2]
[363668271,1748806239873,-430.0,0.0002,2]
[363668272,1748806239882,-430.0,0.0002,2]
[363668273,1748806239891,-188005.57299744,0.0002,2]
[363668274,1748806239901,-5156.46160245,0.0002,2]
[363668275,1748806239910,-705.32,0.0002,2]
[363668276,1748806239920,-1047.38,0.0002,2]
[363668277,1748806239930,-1069.0,0.0002,2]
[363668278,1748806239939,-500.42,0.0002,2]
[363668279,1748806239948,-966.98,0.0002,2]
[363668280,1748806239958,-1377.76,0.0002,2]
[363668281,1748806239968,-622.88,0.0002,2]
[363668282,1748806239977,-430.0,0.0002,2]
[363668283,1748806239986,-260.4103811,0.00020003,2]
[363668284,1748806239996,-4001.89342993,0.00020038,2]
[363668285,1748806240006,-270.0455652,0.00020058,2]
[363668286,1748806240015,-500.0,0.00020067,2]
[363668287,1748806240025,-280.03725112,0.00020113,2]
[363668288,1748806240035,-3907.07482297,0.00020149,2]
[363668289,1748806240045,-400.62673413,0.00020168,2]
[363668290,1748806240054,-185.646777,0.00020187,2]
[363668291,1748806240063,-500.0,0.00020189,2]
[363668292,1748806240073,-500.0,0.00020189,2]
[363668293,1748806240082,-500.0,0.00020189,2]
[363668294,1748806240091,-501.59296241,0.00020189,2]
[363668295,1748806240101,-478.90915414,0.00020189,2]
[363668296,1748806240112,-500.42226515,0.00020189,2]
[363668297,1748806240122,-207.4,0.0002027,2]
[363668298,1748806240131,-154.67873888,0.0002027,2]
[363668299,1748806240141,-800.0,0.0002027,2]
[363668301,1748806240150,-300.0,0.0002027,2]
[363668302,1748806240159,-800.0,0.0002027,2]
[363668303,1748806240169,-300.0,0.0002027,2]
[363668304,1748806240178,-800.0,0.0002027,2]
[363668305,1748806240188,-300.0,0.0002027,2]
[363668306,1748806240197,-800.0,0.0002027,2]
[363668307,1748806240207,-300.0,0.0002027,2]
[363668308,1748806240216,-800.0,0.0002027,2]
[363668309,1748806240225,-300.0,0.0002027,2]
[363668310,1748806240234,-800.0,0.0002027,2]
[363668311,1748806240244,-300.0,0.0002027,2]
[363668312,1748806240253,-300.0,0.0002027,2]
[363668313,1748806240263,-800.0,0.0002027,2]
[363668314,1748806240272,-800.0,0.0002027,2]
[363668315,1748806240282,-300.0,0.0002027,2]
[363668316,1748806240292,-800.0,0.0002027,2]
[363668317,1748806240301,-300.0,0.0002027,2]
[363668318,1748806240312,-800.0,0.0002027,2]
[363668319,1748806240322,-300.0,0.0002027,2]
[363668320,1748806240333,-800.0,0.0002027,2]
[363668321,1748806240343,-5000.0,0.0002027,2]
[363668322,1748806240353,-300.0,0.0002027,2]
[363668323,1748806240362,-800.0,0.0002027,2]
[363668324,1748806240372,-300.0,0.0002027,2]
[363668326,1748806240381,-800.0,0.0002027,2]
[363668328,1748806240391,-300.0,0.0002027,2]
[363668329,1748806240400,-800.0,0.0002027,2]
[363668330,1748806240411,-300.0,0.0002027,2]
[363668331,1748806240420,-800.0,0.0002027,2]
[363668332,1748806240430,-300.0,0.0002027,2]
[363668333,1748806240439,-430.0,0.00020273,2]
[363668334,1748806240450,-430.0,0.00020273,2]
[363668335,1748806240459,-705.32,0.00020273,2]
[363668336,1748806240469,-1047.38,0.00020273,2]
[363668337,1748806240479,-1069.0,0.00020273,2]
[363668338,1748806240488,-500.42,0.00020273,2]
[363668339,1748806240498,-966.98,0.00020273,2]
[363668340,1748806240508,-1377.76,0.00020273,2]
[363668341,1748806240519,-622.88,0.00020273,2]
[363668342,1748806240529,-430.0,0.00020273,2]
[363668343,1748806240539,-4001.89342993,0.00020279,3]
[363668344,1748806240548,-151.0,0.000203,4]
[363668345,1748806240558,-325.79914212,0.00020338,2]
[363668346,1748806240567,-188.77363041,0.00020338,2]
[363668347,1748806240576,-163.73485021,0.00020338,2]
[363668348,1748806240586,-499.08564506,0.00020338,2]
[363668349,1748806240596,-500.0,0.00020338,2]
[363668350,1748806240606,-500.0,0.00020338,2]
[363668351,1748806240617,-501.5349435,0.00020338,2]
[363668352,1748806240627,-4001.89342993,0.00020521,3]
[363668353,1748806240636,-143326.0962252,0.00020547,2]
[363668354,1748806240647,-387.27122629,0.00020547,2]
[363668356,1748806240657,-430.0,0.00020547,2]
[363668357,1748806240667,-705.32,0.00020547,2]
[363668358,1748806240677,-1047.38,0.00020547,2]
[363668359,1748806240687,-1069.0,0.00020547,2]
[363668361,1748806240696,-500.42,0.00020547,2]
[363668363,1748806240706,-966.98,0.00020547,2]
[363668365,1748806240715,-1377.76,0.00020547,2]
[363668367,1748806240725,-622.88,0.00020547,2]
[363668369,1748806240735,-430.0,0.00020547,2]
[363668371,1748806240745,-10807.55566457,0.0002057,3]
[363668373,1748806240754,-500.16902464,0.0002057,2]
[363668375,1748806240763,-500.0,0.0002057,2]
[363668377,1748806240773,-168.73407253,0.0002057,2]
[363668379,1748806240783,-525.58676027,0.000206,2]
[363668381,1748806240792,-500.0,0.000206,2]
[363668383,1748806240801,-500.48097815,0.000206,2]
[363668395,1748806240910,-500.92705895,0.000206,2]
[363668397,1748806240921,-500.0,0.000206,2]
[363668399,1748806240931,-500.0,0.000206,2]
[363668401,1748806240940,-500.0,0.000206,2]
[363668403,1748806240950,-526.35865506,0.00020699,2]
[363668405,1748806240959,-151.0,0.000207,4]
[363668407,1748806240969,-1000.0,0.00020737,2]
[363668409,1748806240978,-4001.89342993,0.00020762,3]
[363668412,1748806240988,-160.0,0.0002077,3]
[363668414,1748806240997,-5000.0,0.00020818,2]
[363668416,1748806241007,-430.0,0.00020821,2]
[363668418,1748806241016,-705.32,0.00020821,2]
[363668420,1748806241027,-1047.38,0.00020821,2]
[363668422,1748806241036,-1069.0,0.00020821,2]
[363668424,1748806241046,-500.42,0.00020821,2]
[363668426,1748806241055,-966.98,0.00020821,2]
[363668428,1748806241065,-1377.76,0.00020821,2]
[363668430,1748806241074,-622.88,0.00020821,2]
[363668432,1748806241083,-430.0,0.00020821,2]
[363668434,1748806241092,-859.78747334,0.00020886,2]
[363668436,1748806241102,-1530.0,0.00020893,2]
[363668438,1748806241113,-823.0,0.00020909,2]
[363668440,1748806241122,-649.21402904,0.00020964,2]
[363668442,1748806241131,-500.0,0.00020964,2]
[363668444,1748806241141,-4001.89342993,0.00021003,4]
[363668446,1748806241150,-563.82170522,0.00021095,2]
[363668455,1748806241225,-312.92834923,0.00016438,2]
[363668457,1748806241234,-169.91432766,0.00017534,2]
[363668459,1748806241245,-499.83567234,0.00017534,2]
[363668461,1748806241256,-669.75,0.00017808,2]
[363668463,1748806241266,-669.75,0.00018082,2]
[363668466,1748806241276,-669.75,0.00018356,2]
[363668468,1748806241285,-669.75,0.0001863,2]
[363668470,1748806241295,-669.75,0.00018904,2]
[363668472,1748806241304,-669.75,0.00019178,2]
[363668473,1748806241314,-289.56434135,0.00019274,2]
[363668476,1748806241323,-669.75,0.00019452,2]
[363668478,1748806241332,-5.60861484,0.00021095,2]
[363668480,1748806241343,-705.32,0.00021095,2]
[363668482,1748806241352,-1047.38,0.00021095,2]
[363668484,1748806241361,-1069.0,0.00021095,2]
[363668486,1748806241371,-500.42,0.00021095,2]
[363668488,1748806241380,-966.98,0.00021095,2]
[363668490,1748806241389,-1377.76,0.00021095,2]
[363668492,1748806241398,-622.88,0.00021095,2]
[363668493,1748806241410,-430.0,0.00021095,2]
[363668496,1748806241420,-869.90684858,0.00021118,2]
[363668498,1748806241430,-3907.07482297,0.00021145,2]
[363668500,1748806241440,-168.21129388,0.00021185,2]
[363668502,1748806241450,-2754.19127763,0.000212,2]
[363668504,1748806241460,-153.0,0.000212,2]
[363668506,1748806241470,-153.0,0.000212,2]
[363668508,1748806241480,-153.0,0.000212,2]
[363668510,1748806241490,-153.0,0.000212,2]
[363668512,1748806241499,-153.0,0.000212,2]
[363668514,1748806241508,-153.0,0.000212,2]
[363668516,1748806241518,-153.0,0.000212,2]
[363668518,1748806241527,-153.0,0.000212,2]
[363668520,1748806241537,-316.0,0.000212,2]
[363668522,1748806241546,-316.0,0.000212,2]
[363668523,1748806241556,-316.0,0.000212,2]
[363668525,1748806241565,-316.0,0.000212,2]
[363668527,1748806241575,-316.0,0.000212,2]
[363668530,1748806241586,-316.0,0.000212,2]
[363668531,1748806241596,-316.0,0.000212,2]
[363668534,1748806241607,-316.0,0.000212,2]
[363668536,1748806241616,-316.0,0.000212,2]
[363668538,1748806241625,-316.0,0.000212,2]
[363668540,1748806241636,-316.0,0.000212,2]
[363668542,1748806241645,-316.0,0.000212,2]
[363668544,1748806241656,-316.0,0.000212,2]
[363668546,1748806241665,-316.0,0.000212,2]
[363668548,1748806241674,-316.0,0.000212,2]
[363668550,1748806241684,-316.0,0.000212,2]
[363668552,1748806241693,-316.0,0.000212,2]
[363668554,1748806241702,-316.0,0.000212,2]
[363668556,1748806241711,-316.0,0.000212,2]
[363668558,1748806241721,-316.0,0.000212,2]
[363668560,1748806241731,-316.0,0.000212,2]
[363668562,1748806241740,-316.0,0.000212,2]
[363668564,1748806241750,-316.0,0.000212,2]
[363668566,1748806241760,-316.0,0.000212,2]
[363668568,1748806241769,-316.0,0.000212,2]
[363668570,1748806241778,-316.0,0.000212,2]
[363668572,1748806241788,-316.0,0.000212,2]
[363668574,1748806241797,-316.0,0.000212,2]
[363668576,1748806241806,-2713.33984541,0.000212,30]
[363668578,1748806241816,-153.0,0.000212,2]
[363668580,1748806241825,-3000.0,0.0002121,2]
[363668582,1748806241835,-3000.0,0.0002122,2]
[363668584,1748806241844,-3000.0,0.0002123,2]
[363668586,1748806241853,-3000.0,0.0002124,2]
[363668588,1748806241862,-4001.89342993,0.00021245,4]
[363668590,1748806241871,-3000.0,0.0002125,2]
[363668592,1748806241881,-3000.0,0.0002126,2]
[363668594,1748806241890,-3000.0,0.0002127,2]
[363668596,1748806241899,-3000.0,0.0002128,2]
[363668598,1748806241909,-1500.0,0.00021285,2]
[363668600,1748806241918,-3000.0,0.0002129,2]
[363668602,1748806241928,-3000.0,0.000213,2]
[363668604,1748806241938,-151.0,0.000213,3]
[363668606,1748806241948,-3000.0,0.0002131,2]
[363668608,1748806241958,-224.82772,0.0002131,2]
[363668610,1748806241967,-3000.0,0.0002132,2]
[363668612,1748806241977,-3089.37,0.00021326,2]
[363668614,1748806241986,-3000.0,0.0002133,2]
[363668616,1748806241995,-3000.0,0.0002134,2]
[363668618,1748806242004,-3000.0,0.0002135,2]
[363668620,1748806242014,-3000.0,0.0002136,2]
[363668622,1748806242024,-5000.0,0.00021366,2]
[363668625,1748806242038,-705.32,0.00021369,2]
[363668627,1748806242052,-1047.38,0.00021369,2]
[363668629,1748806242065,-1069.0,0.00021369,2]
[363668632,1748806242079,-500.42,0.00021369,2]
[363668634,1748806242089,-966.98,0.00021369,2]
[363668636,1748806242102,-1377.76,0.00021369,2]
[363668638,1748806242118,-622.88,0.00021369,2]
[363668641,1748806242132,-430.0,0.00021369,2]
[363668643,1748806242145,-3000.0,0.0002137,2]
[363668645,1748806242159,-3000.0,0.0002138,2]
[363668648,1748806242172,-3000.0,0.0002139,2]
[363668650,1748806242185,-3000.0,0.000214,2]
[363668652,1748806242198,-3000.0,0.0002141,2]
[363668655,1748806242211,-3000.0,0.0002142,2]
[363668657,1748806242224,-3000.0,0.0002143,2]
[363668659,1748806242235,-4202.395677,0.0002144,2]
[363668661,1748806242248,-4001.89342993,0.00021486,5]
[363668664,1748806242260,-655.21786445,0.00021512,2]
[363668666,1748806242271,-151.0,0.00021604,2]
[363668668,1748806242285,-215.0738,0.00021639,2]
[363668671,1748806242298,-705.32,0.00021643,2]
[363668673,1748806242311,-1047.38,0.00021643,2]
[363668675,1748806242323,-1069.0,0.00021643,2]
[363668677,1748806242334,-500.42,0.00021643,2]
[363668679,1748806242345,-966.98,0.00021643,2]
[363668682,1748806242358,-1377.76,0.00021643,2]
[363668684,1748806242370,-622.88,0.00021643,2]
[363668686,1748806242381,-430.0,0.00021643,2]
[363668688,1748806242393,-151.0,0.000217,3]
[363668689,1748806242406,-4001.89342993,0.00021728,5]
[363668690,1748806242418,-1816.569926,0.00021806,3]
[363668691,1748806242431,-1000.54762423,0.00021833,2]
[363668692,1748806242444,-1000.0,0.00021841,5]
[363668693,1748806242458,-151.0,0.000219,3]
[363668694,1748806242472,-5000.0,0.00021914,2]
[363668695,1748806242484,-705.32,0.00021917,2]
[363668696,1748806242495,-1047.38,0.00021917,2]
[363668697,1748806242506,-1069.0,0.00021917,2]
[363668698,1748806242518,-500.42,0.00021917,2]
[363668699,1748806242531,-966.98,0.00021917,2]
[363668700,1748806242545,-1377.76,0.00021917,2]
[363668701,1748806242559,-622.88,0.00021917,2]
[363668702,1748806242573,-374.43,0.00021917,2]
[363668703,1748806242584,-150.0,0.00021918,2]
[363668704,1748806242596,-151.0,0.00021918,7]
[363668705,1748806242607,-391.7511468,0.00021945,2]
[363668707,1748806242619,-364.3782178,0.00021945,2]
[363668709,1748806242632,-4001.89342993,0.00021969,6]
[363668712,1748806242643,-800.0,0.00021996,2]
[363668714,1748806242654,-421.48,0.00022,7]
[363668716,1748806242664,-198.0,0.00022,2]
[363668718,1748806242675,-153.246323,0.00022004,7]
[363668720,1748806242686,-151.0,0.00022004,7]
[363668722,1748806242697,-152.177729,0.00022004,7]
[363668725,1748806242708,-151.0,0.00022004,7]
[363668727,1748806242719,-800.0,0.00022093,2]
[363668729,1748806242731,-800.0,0.00022108,2]
[363668731,1748806242742,-800.0,0.0002212,2]
[363668733,1748806242752,-800.0,0.00022175,2]
[363668735,1748806242764,-705.32,0.00022191,2]